bitfinex/quotes_SOLUSD_20241127
["timestamp","ask_amount","ask_price","bid_price","bid_amount"]
[1732679577264,8.57758632,232.15,232.11,24.3083]
[1732679577774,8.57758632,232.15,232.11,40.4571]
[1732679577948,0.5081601,232.16,232.11,40.4571]
[1732679578149,8.57758632,232.15,232.11,40.4571]
[1732679580174,9.08574642,232.16,232.11,40.4571]
[1732679580876,0.5081601,232.16,232.11,40.4571]
[1732679581069,9.08574642,232.16,232.11,40.4571]
[1732679581373,8.57758632,232.15,232.13,4.3079]
[1732679582475,8.57758632,232.15,232.12,4.3081]
[1732679582672,0.5081601,232.16,232.12,4.3081]
[1732679582673,8.57758632,232.13,232.12,4.3081]
[1732679583168,8.57758632,232.14,232.12,4.3081]
[1732679583373,8.57758632,232.13,232.11,16.1488]
[1732679583580,8.57758632,232.12,232.11,20.457]
[1732679584481,8.57758632,232.13,232.11,20.457]
[1732679585873,0.5081601,232.16,232.11,20.457]
[1732679587090,9.08574642,232.16,232.11,20.457]
[1732679587957,9.08574642,232.16,232.11,92.957]
[1732679588155,0.5081601,232.16,232.12,8.57758632]
[1732679588478,0.5081601,232.16,232.11,103.7277]
[1732679591086,0.5081601,232.16,232.13,8.57758632]
[1732679591374,0.5081601,232.16,232.11,103.7277]
[1732679596677,9.08574642,232.16,232.11,103.7277]
[1732679596875,0.5081601,232.16,232.11,103.7277]
[1732679597678,0.5081601,232.16,232.11,112.30528632]
[1732679600682,0.5081601,232.16,232.11,125.26528632]
[1732679600865,0.5081601,232.16,232.11,103.7277]
[1732679601769,8.57758632,232.13,232.11,16.1488]
[1732679601967,8.57758632,232.13,232.06,83.194]
[1732679602163,8.57758632,232.1,232.06,83.194]
[1732679602797,8.57758632,232.15,232.07,8.57758632]
[1732679603173,8.57758632,232.13,232.06,93.967]
[1732679603375,8.57758632,232.13,232.09,20.0]
[1732679603792,8.57758632,232.13,232.1,4.3084]
[1732679605482,8.57758632,232.11,232.07,4.309]
[1732679605992,8.57758632,232.11,232.07,76.809]
[1732679612492,0.5081601,232.16,232.07,76.809]
[1732679612701,8.57758632,232.12,232.07,76.809]
[1732679613877,8.57758632,232.1,232.05,19.9846]
[1732679616494,8.57758632,232.06,232.05,4.3092]
[1732679616710,8.57758632,232.06,232.03,4.3097]
[1732679617199,8.57758632,232.05,232.03,4.3097]
[1732679618080,8.57758632,232.06,232.03,4.3097]
[1732679619488,8.57758632,232.06,232.02,20.0]
[1732679619793,8.57758632,232.06,232.02,24.3098]
[1732679621885,16.1192,232.11,232.02,24.3098]
[1732679622080,8.57758632,232.08,232.02,24.3098]
[1732679623293,0.8615,232.14,232.02,32.88738632]
[1732679623604,8.57758632,232.09,232.02,32.88738632]
[1732679624496,8.57758632,232.08,232.02,24.3098]
[1732679628210,16.6273601,232.16,232.05,8.57758632]
[1732679628381,8.57758632,232.13,232.06,8.57758632]
[1732679628785,8.57758632,232.12,232.05,72.5]
[1732679630282,8.57758632,232.12,232.06,4.3092]
[1732679630902,8.57758632,232.13,232.06,4.3092]
[1732679632187,8.57758632,232.14,232.06,12.88678632]
[1732679634113,8.57758632,232.14,232.07,8.57758632]
[1732679634997,8.57758632,232.12,232.06,76.8092]
[1732679637016,8.57758632,232.12,232.06,78.46791173]
[1732679638721,0.5081601,232.16,232.06,78.46791173]
[1732679639014,8.57758632,232.13,232.06,78.46791173]
[1732679640209,8.57758632,232.11,232.06,78.46791173]
[1732679642023,8.57758632,232.11,232.06,5.96791173]
[1732679643518,8.57758632,232.13,232.06,5.96791173]
[1732679643728,8.57758632,232.15,232.07,8.57758632]
[1732679645112,8.57758632,232.15,232.08,4.3088]
[1732679645496,0.5081601,232.16,232.09,96.84688632]
[1732679645715,0.5081601,232.16,232.1,8.57758632]
[1732679646116,0.5081601,232.16,232.1,81.07758632]
[1732679646626,8.57758632,232.14,232.1,72.5]
[1732679646931,8.57758632,232.12,232.1,72.5]
[1732679647222,8.57758632,232.12,232.1,76.8083]
[1732679648127,8.57758632,232.12,232.09,15.7693]
[1732679648301,8.57758632,232.12,232.04,91.85138632]
[1732679648302,8.57758632,232.1,232.04,72.5]
[1732679648506,8.57758632,232.06,232.03,20.0789]
[1732679648934,8.57758632,232.04,232.03,20.0789]
[1732679649124,8.57758632,232.06,232.03,20.0789]
[1732679649427,8.57758632,232.08,232.03,20.0789]
[1732679650701,8.57758632,232.06,232.03,20.0789]
[1732679650906,8.57758632,232.06,232.03,15.7693]
[1732679651124,8.57758632,232.04,232.01,4.3099]
[1732679651448,8.57758632,232.04,232.0,76.8103]
[1732679652317,8.57758632,232.05,232.0,76.8103]
[1732679653613,0.8615,232.13,232.0,20.0]
[1732679653824,8.57758632,232.07,232.0,20.0]
[1732679654665,8.57758632,232.08,232.0,101.07758632]
[1732679654843,8.57758632,232.05,232.0,20.0]
[1732679655613,8.57758632,232.05,231.94,13.50167759]
[1732679655614,8.57758632,232.01,231.94,72.5]
[1732679655829,8.57758632,231.99,231.95,4.3112]
[1732679656133,8.57758632,231.97,231.92,20.081]
[1732679656309,34.31034528,232.08,231.92,28.65858632]
[1732679656310,8.57758632,231.99,231.92,28.65858632]
[1732679656510,8.57758632,232.0,231.92,101.15858632]
[1732679657223,8.57758632,232.0,231.93,8.57758632]
[1732679657429,8.57758632,232.01,231.94,12.88898632]
[1732679657727,8.57758632,232.04,231.96,8.57758632]
[1732679658232,8.57758632,232.04,231.97,8.57758632]
[1732679658802,8.57758632,232.04,231.98,4.3107]
[1732679659002,8.57758632,232.03,231.98,4.3107]
[1732679659227,0.8618,232.06,231.98,4.3107]
[1732679659228,8.57758632,232.04,231.98,4.3107]
[1732679659608,8.57758632,232.05,231.98,12.88828632]
[1732679659919,0.8618,232.08,231.98,4.3107]
[1732679659920,8.57758632,232.04,231.98,4.3107]
[1732679663107,6.6505,232.09,231.98,4.3107]
[1732679663108,7.5122,232.09,231.98,12.88828632]
[1732679663314,8.57758632,232.06,231.98,12.88828632]
[1732679665317,0.8617,232.08,231.98,12.88828632]
[1732679665652,8.57758632,232.06,231.98,12.88828632]
[1732679665935,0.8617,232.08,231.98,12.88828632]
[1732679666144,8.57758632,232.06,231.98,12.88828632]
[1732679666439,0.8616,232.11,231.98,12.88828632]
[1732679666731,8.57758632,232.06,231.98,12.88828632]
[1732679668133,8.57758632,232.04,231.98,4.3107]
[1732679669418,8.57758632,232.04,231.96,8.57758632]
[1732679669419,8.57758632,232.04,231.97,4.3109]
[1732679673135,9.43948632,232.04,231.96,8.57758632]
[1732679673326,8.57758632,232.01,231.95,72.5]
[1732679675025,8.57758632,232.01,231.95,85.38868632]
[1732679675225,8.57758632,232.01,231.95,12.88868632]
[1732679676624,8.57758632,232.03,231.95,12.88868632]
[1732679681243,8.57758632,232.01,231.95,4.3111]
[1732679682447,8.57758632,232.01,231.94,4.3114]
[1732679685849,8.57758632,231.97,231.92,15.7693]
[1732679687651,8.57758632,231.95,231.88,4.3124]
[1732679688736,8.57758632,231.95,231.86,31.15618632]
[1732679689060,8.57758632,231.95,231.87,12.89028632]
[1732679689230,0.8621,231.97,231.87,12.89028632]
[1732679689429,8.57758632,231.95,231.87,12.89028632]
[1732679689649,8.57758632,231.95,231.88,8.57758632]
[1732679689848,0.8621,231.99,231.88,8.57758632]
[1732679690058,8.57758632,231.96,231.89,8.57758632]
[1732679690743,8.57758632,231.96,231.89,12.88978632]
[1732679691140,8.57758632,231.99,231.92,8.57758632]
[1732679691346,8.57758632,232.0,231.92,8.57758632]
[1732679692185,8.57758632,232.0,231.89,24.3122]
[1732679692186,8.57758632,231.99,231.91,12.88938632]
[1732679694555,8.57758632,231.96,231.91,4.3118]
[1732679694855,8.57758632,231.94,231.88,4.3124]
[1732679696232,0.862,232.0,231.88,12.88998632]
[1732679696427,8.57758632,231.97,231.89,8.57758632]
[1732679697037,20.0,231.99,231.89,8.57758632]
[1732679697364,8.57758632,231.96,231.9,4.3122]
[1732679697727,20.0,231.99,231.9,4.3122]
[1732679697928,8.57758632,231.96,231.9,4.3122]
[1732679699459,8.57758632,231.98,231.9,12.88978632]
[1732679699956,29.43968632,231.99,231.91,8.57758632]
[1732679700259,20.0,232.03,231.93,8.57758632]
[1732679700437,8.57758632,232.02,231.95,8.57758632]
[1732679700638,8.57758632,232.02,231.96,4.311]
[1732679700855,0.8617,232.09,231.96,4.311]
[1732679701062,8.57758632,232.03,231.96,4.311]
[1732679701948,8.57758632,232.03,231.96,8.57758632]
[1732679702141,0.8617,232.09,231.99,8.57758632]
[1732679702340,8.57758632,232.07,232.0,8.57758632]
[1732679703050,5.94517656,232.14,232.02,8.57758632]
[1732679703355,8.57758632,232.13,232.06,8.57758632]
[1732679703851,8.57758632,232.12,232.05,8.57758632]
[1732679704047,8.57758632,232.11,232.05,4.3094]
[1732679704355,8.57758632,232.1,232.05,4.3094]
[1732679708343,8.57758632,232.1,232.02,101.07758632]
[1732679708665,8.57758632,232.1,232.03,4.3097]
[1732679709358,0.8615,232.14,231.99,50.292884]
[1732679709359,8.57758632,232.08,231.99,20.0505]
[1732679709565,8.57758632,232.08,231.99,28.62808632]
[1732679709865,8.57758632,232.09,232.01,8.57758632]
[1732679710442,8.57758632,232.11,232.03,8.57758632]
[1732679711053,8.57758632,232.11,231.99,103.3268]
[1732679711054,8.57758632,232.11,232.05,8.57758632]
[1732679711252,8.57758632,232.14,232.06,8.57758632]
[1732679711742,8.57758632,232.14,232.0,0.64629939]
[1732679711953,8.57758632,232.14,231.99,103.3268]
[1732679711954,8.57758632,232.12,232.02,20.0]
[1732679712262,8.57758632,232.11,232.03,12.88728632]
[1732679712656,8.57758632,232.12,232.04,8.57758632]
[1732679713466,8.57758632,232.1,232.04,4.3094]
[1732679714465,8.57758632,232.1,232.03,4.3097]
[1732679717473,8.57758632,232.08,232.03,4.3097]
[1732679719566,8.57758632,232.1,232.03,4.3097]
[1732679720878,8.57758632,232.04,231.98,4.3107]
[1732679721047,8.57758632,232.01,231.94,15.8688]
[1732679721370,8.57758632,231.99,231.94,20.1801]
[1732679721571,8.57758632,231.99,231.94,15.8688]
[1732679722149,8.57758632,231.99,231.94,20.18]
[1732679722459,8.57758632,232.01,231.94,20.18]
[1732679723160,8.57758632,232.0,231.94,20.18]
[1732679724370,13.39689906,232.0,231.94,20.18]
[1732679725881,14.25889906,232.0,231.94,15.8688]
[1732679726177,13.39689906,231.96,231.91,76.8119]
[1732679726965,13.39689906,231.96,231.91,4.3119]
[1732679727948,13.39689906,231.98,231.91,17.70879906]
[1732679728148,13.39689906,232.01,231.93,13.39689906]
[1732679729472,13.39689906,232.0,231.92,13.39689906]
[1732679730851,13.39689906,232.0,231.93,4.3116]
[1732679731255,13.39689906,232.01,231.94,13.39689906]
[1732679731659,13.39689906,232.04,231.97,13.39689906]
[1732679732360,13.39689906,232.05,231.98,13.39689906]
[1732679732564,0.8616,232.1,231.98,13.39689906]
[1732679732565,13.39689906,232.06,231.98,13.39689906]
[1732679732954,13.39689906,232.06,231.99,4.3105]
[1732679733155,13.39689906,232.05,231.99,4.3105]
[1732679734574,13.39689906,232.03,231.97,4.3107]
[1732679734868,13.39689906,232.03,231.97,17.70759906]
[1732679735070,13.39689906,232.04,231.97,17.70759906]
[1732679735275,13.39689906,232.05,231.97,17.70759906]
[1732679736159,13.39689906,232.05,231.98,13.39689906]
[1732679736751,13.39689906,232.05,231.99,4.3105]
[1732679737555,13.39689906,232.06,231.99,20.8367]
[1732679738782,13.39689906,232.07,232.01,4.3101]
[1732679740176,13.39689906,232.07,232.0,4.3103]
[1732679744183,2.154,232.13,231.99,22.9142]
[1732679744184,13.39689906,232.05,231.99,22.9142]
[1732679744560,13.39689906,232.03,231.99,22.9142]
[1732679746363,8.57103197,232.04,231.99,22.9142]
[1732679746578,8.57103197,232.02,231.99,16.5262]
[1732679755592,7.22324481,232.09,231.99,16.5262]
[1732679755796,8.57103197,232.03,231.99,16.5262]
[1732679760899,20.0,232.06,231.99,16.5262]
[1732679761287,8.57103197,232.05,231.99,16.5262]
[1732679762195,8.57103197,232.03,231.99,16.5262]
[1732679762706,28.776884,232.1,231.99,16.5262]
[1732679762707,0.8615,232.15,231.99,29.40773197]
[1732679762886,8.57103197,232.11,232.03,8.57103197]
[1732679763701,8.57103197,232.07,232.0,6.3853]
[1732679764803,8.57103197,232.07,232.01,4.3101]
[1732679765609,5.08035675,232.14,232.02,24.18483197]
[1732679765807,8.57103197,232.1,232.02,24.18483197]
[1732679766306,8.57103197,232.08,232.02,15.6138]
[1732679766699,8.57103197,232.08,232.03,4.3097]
[1732679766901,0.5081601,232.16,232.03,4.3097]
[1732679767103,8.57103197,232.08,232.03,4.3097]
[1732679770204,8.57103197,232.1,232.03,4.3097]
[1732679771117,8.57103197,232.12,232.04,8.57103197]
[1732679772406,8.57103197,232.12,232.05,4.3094]
[1732679773204,8.57103197,232.11,232.05,4.3094]
[1732679773711,8.57103197,232.1,232.04,4.3096]
[1732679773912,0.8615,232.14,232.04,4.3096]
[1732679773913,8.57103197,232.08,232.04,4.3096]
[1732679774793,8.57103197,232.08,232.03,4.3097]
[1732679782119,8.57103197,232.12,232.03,4.3097]
[1732679782304,8.57103197,232.12,232.04,8.57103197]
[1732679783624,0.5081601,232.16,232.06,8.57103197]
[1732679783829,8.57103197,232.14,232.06,8.57103197]
[1732679784023,8.57103197,232.14,232.07,4.309]
[1732679784722,0.5081601,232.16,232.13,8.57103197]
[1732679785104,0.5081601,232.16,232.11,8.57103197]
[1732679785426,0.5081601,232.16,232.1,8.57103197]
[1732679785628,8.57103197,232.13,232.08,21.7178]
[1732679785828,0.5081601,232.16,232.08,21.7178]
[1732679785829,8.57103197,232.11,232.08,21.7178]
[1732679786029,0.5081601,232.16,232.08,26.0265]
[1732679786030,8.57103197,232.12,232.08,26.0265]
[1732679786330,8.57103197,232.14,232.08,26.0265]
[1732679786620,8.57103197,232.13,232.08,26.0265]
[1732679788421,0.5081601,232.16,232.08,26.0265]
[1732679788626,9.07919207,232.16,232.08,34.59753197]
[1732679789205,8.57103197,232.15,232.08,26.0265]
[1732679790703,8.57103197,232.11,232.08,15.083]
[1732679790911,0.8615,232.15,232.08,15.083]
[1732679791116,8.57103197,232.11,232.08,15.083]
[1732679791323,8.57103197,232.13,232.08,15.083]
[1732679791711,8.57103197,232.15,232.08,15.083]
[1732679792311,9.07919207,232.16,232.09,8.57103197]
[1732679792940,9.07919207,232.16,232.1,4.3084]
[1732679795504,8.57103197,232.11,232.03,6.6348]
[1732679795715,8.57103197,232.11,231.97,72.5]
[1732679795716,8.57103197,232.04,231.98,4.3107]
[1732679795923,8.57103197,232.01,231.97,6.2115]
[1732679796124,23.776884,232.07,231.97,6.2115]
[1732679796329,23.776884,232.07,231.97,10.5223]
[1732679796625,8.57103197,232.01,231.97,6.2115]
[1732679796939,23.776884,232.07,231.97,6.2115]
[1732679797104,8.57103197,232.02,231.97,6.2115]
[1732679797304,8.57103197,232.02,231.98,4.3107]
[1732679800136,8.57103197,232.0,231.95,4.3112]
[1732679800435,8.57103197,231.98,231.93,4.3114]
[1732679800639,8.57103197,231.98,231.91,26.8939]
[1732679805734,8.57103197,231.98,231.91,35.46493197]
[1732679806315,5.06911091,232.06,231.91,35.46493197]
[1732679806316,20.0,232.04,231.92,8.57103197]
[1732679806519,8.57103197,232.0,231.93,8.57103197]
[1732679807420,8.57103197,232.0,231.94,4.3114]
[1732679807935,0.8619,232.05,231.95,8.57103197]
[1732679808140,8.57103197,232.06,231.98,8.57103197]
[1732679808314,8.57103197,232.04,231.98,8.57103197]
[1732679808516,8.57103197,232.04,231.96,8.57103197]
[1732679808735,8.57103197,232.04,231.97,8.57103197]
[1732679808909,8.57103197,232.05,231.97,8.57103197]
[1732679809617,20.0,232.1,232.01,8.57103197]
[1732679809810,8.57103197,232.08,232.01,8.57103197]
[1732679810029,8.57103197,232.08,231.99,8.57103197]
[1732679810729,8.57103197,232.08,232.0,4.3103]
[1732679810929,8.57103197,232.08,232.01,8.57103197]
[1732679811637,8.57103197,232.09,232.01,8.57103197]
[1732679812734,8.57103197,232.07,232.02,4.3099]
[1732679814322,8.57103197,232.09,232.02,4.3099]
[1732679814539,8.57103197,232.09,232.01,8.57103197]
[1732679814723,8.57103197,232.09,232.01,12.88113197]
[1732679816439,8.57103197,232.09,232.02,8.57103197]
[1732679817446,8.57103197,232.09,232.03,4.3097]
[1732679818934,8.57103197,232.09,232.01,12.88113197]
[1732679819320,8.57103197,232.11,232.03,8.57103197]
[1732679819541,8.57103197,232.13,232.06,8.57103197]
[1732679819776,8.57103197,232.13,232.05,8.57103197]
[1732679820044,8.57103197,232.11,232.04,8.57103197]
[1732679820642,8.57103197,232.11,232.03,8.57103197]
[1732679820826,8.57103197,232.1,232.03,81.07103197]
[1732679821146,8.57103197,232.1,232.04,4.3096]
[1732679821528,8.57103197,232.11,232.04,4.3096]
[1732679821848,8.57103197,232.12,232.04,12.88063197]
[1732679822728,8.57103197,232.13,232.05,8.57103197]
[1732679823052,8.57103197,232.13,232.06,4.3092]
[1732679823631,8.57103197,232.13,232.06,12.88023197]
[1732679823841,8.57103197,232.13,232.06,4.3092]
[1732679826829,0.5081601,232.16,232.07,8.57103197]
[1732679826830,8.57103197,232.15,232.07,8.57103197]
[1732679828042,8.57103197,232.15,232.08,4.3088]
[1732679829256,0.5081601,232.16,232.08,4.3088]
[1732679829435,9.07919207,232.16,232.09,24.59533197]
[1732679829764,0.5081601,232.16,232.09,24.59533197]
[1732679830751,8.57103197,232.15,232.09,16.0243]
[1732679831749,0.5081601,232.16,232.09,16.0243]
[1732679831750,0.5081601,232.16,232.1,12.87943197]
[1732679832252,0.5081601,232.16,232.1,23.65063197]
[1732679832462,0.5081601,232.16,232.12,8.57103197]
[1732679833448,0.5081601,232.16,232.13,4.3079]
[1732679833654,0.5081601,232.16,232.13,12.87893197]
[1732679835936,0.5081601,232.16,232.1,83.2712]
[1732679835937,0.5081601,232.16,232.12,8.57103197]
[1732679836146,0.5081601,232.16,232.11,23.65003197]
[1732679836464,0.5081601,232.16,232.11,15.079]
[1732679838652,8.57103197,232.15,232.11,4.3083]
[1732679838963,8.57103197,232.13,232.11,4.3083]
[1732679839260,8.57103197,232.13,232.09,16.0243]
[1732679839443,8.57103197,232.11,232.09,16.0243]
[1732679840163,8.57103197,232.11,232.07,4.3088]
[1732679840549,8.57103197,232.09,232.07,4.3088]
[1732679840752,8.57103197,232.09,232.05,4.3094]
[1732679841161,1.3695601,232.16,232.05,4.3094]
[1732679841364,8.57103197,232.1,232.05,4.3094]
[1732679842467,8.57103197,232.08,232.05,4.3094]
[1732679842650,8.57103197,232.08,232.04,15.694]
[1732679843367,8.57103197,232.06,232.02,4.3098]
[1732679843864,8.57103197,232.06,231.99,4.3105]
[1732679846248,8.57103197,232.06,231.99,12.88153197]
[1732679848370,8.57103197,232.1,232.01,8.57103197]
[1732679848867,8.57103197,232.1,232.03,8.57103197]
[1732679849464,8.57103197,232.1,232.01,8.57103197]
[1732679849667,0.8615,232.13,232.01,8.57103197]
[1732679849871,8.57103197,232.1,232.01,8.57103197]
[1732679850569,8.57103197,232.1,232.04,4.3096]
[1732679855259,8.57103197,232.08,232.04,4.3096]
[1732679855577,8.57103197,232.06,232.0,4.3103]
[1732679855758,8.57103197,232.06,231.98,15.694]
[1732679856068,8.57103197,232.04,231.99,4.3105]
[1732679859474,8.57103197,232.08,232.0,8.57103197]
[1732679861381,8.57103197,232.07,232.01,4.3101]
[1732679862260,8.57103197,232.07,231.99,12.88153197]
[1732679862976,8.57103197,232.05,231.99,4.3105]
[1732679863376,8.57103197,232.03,231.99,4.3105]
[1732679865192,8.57103197,232.05,231.99,4.3105]
[1732679870277,21.3862,232.13,231.99,4.3105]
[1732679870476,8.57103197,232.06,231.99,4.3105]
[1732679871377,8.57103197,232.07,232.0,8.57103197]
[1732679872892,8.57103197,232.07,232.01,4.3101]
[1732679875780,20.0,232.04,231.93,4.3116]
[1732679876075,8.57103197,231.98,231.93,4.3116]
[1732679876792,0.8619,232.03,231.93,4.3116]
[1732679877101,8.57103197,231.98,231.93,4.3116]
[1732679878174,8.57103197,231.96,231.93,4.3116]
[1732679878895,8.57103197,231.98,231.93,4.3116]
[1732679881087,8.57103197,232.01,231.93,4.3116]
[1732679881287,8.57103197,231.99,231.93,4.3116]
[1732679884182,20.0,232.05,231.93,12.88263197]
[1732679884412,0.8617,232.09,231.98,8.57103197]
[1732679884694,0.8617,232.09,231.93,87.5907]
[1732679884695,8.57103197,232.09,232.02,8.57103197]
[1732679885995,8.57103197,232.1,232.03,12.88073197]
[1732679886298,8.57103197,232.12,232.04,8.57103197]
[1732679886479,8.57103197,232.13,232.05,8.57103197]
[1732679887381,8.57103197,232.13,232.06,4.3092]
[1732679887702,8.57103197,232.09,232.06,4.3092]
[1732679887910,8.57103197,232.07,232.02,4.3098]
[1732679888088,8.57103197,232.07,232.01,15.9644]
[1732679888089,8.57103197,232.03,232.01,15.9644]
[1732679888401,20.0,232.04,231.96,15.9644]
[1732679888576,20.0,232.04,231.92,4.3116]
[1732679888577,23.776884,232.03,231.92,4.3116]
[1732679888776,8.57103197,231.97,231.92,4.3116]
[1732679890405,8.57103197,232.02,231.94,28.57103197]
[1732679890792,8.57103197,232.02,231.94,8.57103197]
[1732679891288,8.57103197,232.0,231.92,85.38263197]
[1732679892089,8.57103197,232.0,231.95,20.0]
[1732679892999,8.57103197,232.01,231.95,20.0]
[1732679893382,8.57103197,232.01,231.96,4.311]
[1732679896197,8.57103197,232.01,231.95,4.3112]
[1732679896396,8.57103197,232.01,231.95,24.3112]
[1732679896795,8.57103197,231.99,231.95,24.3112]
[1732679898107,8.57103197,231.99,231.92,4.3118]
[1732679898306,8.57103197,231.97,231.92,4.3118]
[1732679899408,8.57103197,231.95,231.92,4.3118]
[1732679899615,8.57103197,231.95,231.9,20.2764]
[1732679905019,5.07667776,232.02,231.93,8.57103197]
[1732679905217,8.57103197,232.02,231.95,8.57103197]
[1732679905617,8.571032,232.06,231.95,8.57103197]
[1732679905618,5.07726271,232.05,231.95,8.57103197]
[1732679905823,8.57103197,232.04,231.95,8.57103197]
[1732679906715,9.43293197,232.04,231.96,4.311]
[1732679906926,8.57103197,232.02,231.96,4.311]
[1732679908598,8.57103197,232.02,231.94,8.57103197]
[1732679908804,8.57103197,232.02,231.95,4.3112]
[1732679912030,8.57103197,232.02,231.96,8.57103197]
[1732679914924,8.57103197,232.02,231.97,4.3109]
[1732679916410,8.57103197,232.02,231.95,4.3112]
[1732679916411,8.07103197,232.02,231.95,4.3112]
[1732679916916,0.8619,232.05,231.95,4.3112]
[1732679917111,8.57103197,232.02,231.95,4.3112]
[1732679917714,8.57103197,232.04,231.95,4.3112]
[1732679919909,5.08042397,232.08,231.95,4.3112]
[1732679919910,8.57103197,232.02,231.95,4.3112]
[1732679922432,8.57103197,232.0,231.95,4.3112]
[1732679922605,8.57103197,231.98,231.91,4.312]
[1732679923519,8.57103197,231.98,231.91,12.88303197]
[1732679923701,8.57103197,231.96,231.91,4.312]
[1732679925816,8.57103197,231.98,231.91,12.88303197]
[1732679926725,8.57103197,231.98,231.91,4.312]
[1732679926929,8.57103197,231.97,231.91,4.312]
[1732679927347,8.57103197,231.96,231.91,4.312]
[1732679929334,8.57103197,231.97,231.91,4.312]
[1732679929536,0.8619,232.02,231.92,8.57103197]
[1732679929750,8.57103197,231.99,231.92,8.57103197]
[1732679930334,8.57103197,231.99,231.91,12.88303197]
[1732679930959,8.57103197,231.97,231.91,12.88303197]
[1732679931454,8.57103197,231.97,231.91,4.312]
[1732679931854,23.776884,232.02,231.91,12.88303197]
[1732679932055,8.57103197,231.98,231.91,12.88303197]
[1732679932260,8.57103197,231.98,231.91,4.312]
[1732679934764,8.57103197,231.98,231.91,12.88303197]
[1732679936257,8.57103197,231.96,231.91,4.312]
[1732679936561,8.57103197,231.94,231.9,15.9644]
[1732679937640,8.57103197,231.94,231.9,20.2765]
[1732679938072,8.57103197,231.92,231.84,12.88433197]
[1732679938437,5.08592519,231.99,231.84,4.3133]
[1732679938438,8.57103197,231.9,231.84,4.3133]
[1732679939672,8.57103197,231.9,231.83,4.3135]
[1732679941147,8.57103197,231.9,231.84,8.57103197]
[1732679941465,8.57103197,231.9,231.85,4.3131]
[1732679942569,8.57103197,231.92,231.85,4.3131]
[1732679943848,0.8622,231.95,231.85,4.3131]
[1732679944052,8.57103197,231.92,231.85,4.3131]
[1732679944473,8.57103197,231.94,231.86,8.57103197]
[1732679945762,8.57103197,231.94,231.87,4.3127]
[1732679949052,8.57103197,231.92,231.87,4.3127]
[1732679950273,8.57103197,231.92,231.85,4.3131]
[1732679951461,8.57103197,231.9,231.85,4.3131]
[1732679952156,8.57103197,231.86,231.82,16.6575]
[1732679952479,8.57103197,231.83,231.82,16.6575]
[1732679952653,8.57103197,231.83,231.77,4.3146]
[1732679952853,5.0,231.9,231.76,15.6429]
[1732679952854,8.57103197,231.81,231.76,15.6429]
[1732679953056,8.57103197,231.79,231.76,15.6429]
[1732679953270,8.57103197,231.77,231.71,16.3166]
[1732679953779,8.57103197,231.77,231.7,4.3159]
[1732679954079,34.28412788,231.84,231.66,10.7914]
[1732679954080,8.57103197,231.74,231.68,4.3161]
[1732679957078,8.57103197,231.76,231.68,4.3161]
[1732679959974,8.57103197,231.76,231.68,12.88713197]
[1732679961675,25.0,231.83,231.69,8.57103197]
[1732679961853,8.57103197,231.77,231.69,8.57103197]
[1732679962059,8.57103197,231.77,231.68,12.88713197]
[1732679964560,8.57103197,231.7,231.63,16.3166]
[1732679964778,8.57103197,231.68,231.63,16.3166]
[1732679965779,8.57103197,231.68,231.63,20.6337]
[1732679966887,8.57103197,231.66,231.58,19.9009]
[1732679967965,20.0,231.69,231.59,8.57103197]
[1732679968177,8.57103197,231.67,231.59,8.57103197]
[1732679969363,8.57103197,231.67,231.6,4.3177]
[1732679969971,23.776884,231.73,231.61,8.57103197]
[1732679970182,8.57103197,231.7,231.61,8.57103197]
[1732679971365,8.57103197,231.7,231.63,8.57103197]
[1732679971564,8.57103197,231.72,231.63,8.57103197]
[1732679972071,8.57103197,231.72,231.62,15.1109]
[1732679972270,8.57103197,231.72,231.63,8.57103197]
[1732679972475,8.57103197,231.72,231.64,4.317]
[1732679972663,8.57103197,231.72,231.64,12.88803197]
[1732679972864,27.8117,231.8,231.66,8.57103197]
[1732679972865,23.776884,231.79,231.66,8.57103197]
[1732679973284,8.57103197,231.74,231.66,8.57103197]
[1732679973878,8.57103197,231.74,231.67,4.3164]
[1732679977584,8.57103197,231.76,231.68,24.38153197]
[1732679978374,8.57103197,231.77,231.68,24.38153197]
[1732679978681,8.57103197,231.77,231.71,4.3157]
[1732679980768,8.57103197,231.77,231.7,4.3159]
[1732679995195,13.00453197,231.77,231.7,4.3159]
[1732679995386,8.57103197,231.73,231.7,4.3159]
[1732679996300,8.57103197,231.73,231.68,15.8105]
[1732679996484,8.57103197,231.73,231.69,4.3161]
[1732679997677,8.57103197,231.71,231.68,15.8105]